[Event "36th Indian-ch U13 Girls 2023"]
[Site "Secunderabad"]
[Date "2023.12.06"]
[Round "5.6"]
[White "Srinika Guin"]
[Black "Sherali Pattnaik"]
[Result "1/2-1/2"]
[ECO "D20"]
[WhiteElo "1157"]
[BlackElo "1575"]
[Annotator "NA COMBH"]
[PlyCount "100"]
[EventDate "2023.12.04"]
[EventType "swiss"]
[EventCountry "IND"]
[SourceTitle "playchess.com"]
[Source "ChessBase"]
[SourceQuality "1"]
[TimeControl "5400+30"]

1. e4 {[%emt 1:31:00]} e6 {[%emt 0:00:54]} 2. d4 {[%emt 0:00:00]} d5 {[%emt 0:00:04]} 3. exd5 {[%emt 0:00:00]} exd5 {[%emt 0:00:05]} 4. c4 {[%emt 0:00:00]} dxc4 {[%emt 0:00:36]} 5. Bxc4 {[%emt 0:00:00]} Be7 {[%emt 0:00:18]} 6. Ne2 {[%emt 0:00:00]} Nf6 {[%emt 0:00:14]} 7. Nbc3 {[%emt 0:00:00]} Nbd7 {[%emt 0:02:54]} 8. O-O {[%emt 0:00:00]} O-O {[%emt 0:00:21]} 9. h3 {[%emt 0:00:00]} Nb6 {[%emt 0:01:44]} 10. Bd3 {[%emt 0:00:00]} c6 {[%emt 0:01:31]} 11. Bg5 {[%emt 0:00:00]} h6 {[%emt 0:02:34]} 12. Bh4 {[%emt 0:00:00]} Nfd5 {[%emt 0:12:51]} 13. Bxe7 {[%emt 0:00:00]} Nxe7 {[%emt 0:01:17]} 14. Nf4 {[%emt 0:00:00]} Nf5 {[%emt 0:06:42]} 15. d5 {[%emt 0:00:00]} Qd6 {[%emt 0:13:43]} 16. Qf3 {[%emt 0:00:00]} cxd5 {[%emt 0:18:39]} 17. Bxf5 {[%emt 0:00:00]} Bxf5 {[%emt 0:00:41]} 18. Nfxd5 {[%emt 0:00:00]} Nxd5 {[%emt 0:01:59]} 19. Qxd5 {[%emt 0:00:00]} Qxd5 {[%emt 0:04:49]} 20. Nxd5 {[%emt 0:00:00]} Kh7 {[%emt 0:00:37]} 21. Rac1 {[%emt 0:00:00]} Be4 {[%emt 0:01:41]} 22. Rfd1 {[%emt 0:00:00]} Rfd8 {[%emt 0:05:15]} 23. Nc3 {[%emt 0:00:00]} Bc6 {[%emt 0:00:52]} 24. Rxd8 {[%emt 0:00:00]} Rxd8 {[%emt 0:00:01]} 25. Rd1 {[%emt 0:00:00]} Rxd1+ {[%emt 0:00:22]} 26. Nxd1 {[%emt 0:00:00]} Kg6 {[%emt 0:00:02]} 27. Ne3 {[%emt 0:00:00]} f5 {[%emt 0:00:45]} 28. g3 {[%emt 0:00:00]} Kf6 {[%emt 0:00:29]} 29. Kf1 {[%emt 0:00:00]} Ke5 {[%emt 0:00:39]} 30. Ke1 {[%emt 0:00:00]} Ke4 {[%emt 0:02:15]} 31. h4 {[%emt 0:00:00]} f4 {[%emt 0:03:01]} 32. gxf4 {[%emt 0:00:00]} Kxf4 {[%emt 0:00:01]} 33. Kd2 {[%emt 0:00:00]} Kf3 {[%emt 0:05:24]} 34. Nf5 {[%emt 0:00:00]} g6 {[%emt 0:02:53]} 35. Nxh6 {[%emt 0:00:00]} Bd5 {[%emt 0:00:30]} 36. a3 {[%emt 0:00:00]} Be6 {[%emt 0:00:20]} 37. Kc3 {[%emt 0:00:00]} Kxf2 {[%emt 0:04:10]} 38. Kd4 {[%emt 0:00:00]} Kg3 {[%emt 0:02:54]} 39. Ke5 {[%emt 0:00:00]} Bb3 {[%emt 0:00:49]} 40. Kf6 {[%emt 0:00:00]} Kxh4 {[%emt 0:00:31]} 41. Kxg6 {[%emt 0:00:00]} Kg3 {[%emt 0:00:28]} 42. Nf5+ {[%emt 0:00:01]} Kf2 {[%emt 0:01:58]} 43. Nd4 {[%emt 0:00:13]} Bd1 {[%emt 0:00:59]} 44. Kf5 {[%emt 0:02:59]} Ke3 {[%emt 0:00:23]} 45. Ke5 {[%emt 0:00:07]} Kd2 {[%emt 0:00:10]} 46. Kd6 {[%emt 0:01:37]} Kc1 {[%emt 0:01:55]} 47. b4 {[%emt 0:01:11]} Kb2 {[%emt 0:01:53]} 48. Kc7 {[%emt 0:00:09]} b6 {[%emt 0:00:28]} 49. Nb5 {[%emt 0:00:09]} a6 {[%emt 0:00:39]} 50. Kxb6 {[%emt 0:00:24]} axb5 {[%emt 0:00:01]} 1/2-1/2

[Event "36th Indian-ch U13 Girls 2023"]
[Site "Secunderabad"]
[Date "2023.12.06"]
[Round "5.8"]
[White "Arshiya Das"]
[Black "Jahnvi Ashok"]
[Result "1-0"]
[ECO "B82"]
[WhiteElo "1729"]
[BlackElo "1309"]
[Annotator "NA COMBH"]
[PlyCount "187"]
[EventDate "2023.12.04"]
[EventType "swiss"]
[EventCountry "IND"]
[SourceTitle "playchess.com"]
[Source "ChessBase"]
[SourceQuality "1"]
[TimeControl "5400+30"]

1. e4 {[%emt 0:00:03]} c5 {[%emt 0:00:06]} 2. Nf3 {[%emt 0:00:12]} d6 {[%emt 0:00:05]} 3. d4 {[%emt 0:00:04]} cxd4 {[%emt 0:00:05]} 4. Nxd4 {[%emt 0:00:04]} Nf6 {[%emt 0:00:05]} 5. Nc3 {[%emt 0:00:03]} a6 {[%emt 0:00:04]} 6. f4 {[%emt 0:00:03]} e6 {[%emt 0:00:30]} 7. Nf3 {[%emt 0:00:04]} Qc7 {[%emt 0:01:13]} 8. Bd3 {[%emt 0:00:22]} Be7 {[%emt 0:00:48]} 9. O-O {[%emt 0:00:09]} Nc6 {[%emt 0:00:45]} 10. Kh1 {[%emt 0:00:48]} O-O {[%emt 0:01:07]} 11. Qe1 {[%emt 0:00:31]} Nd7 {[%emt 0:09:57]} 12. Qg3 {[%emt 0:02:31]} Nc5 {[%emt 0:00:55]} 13. a3 {[%emt 0:04:39]} b5 {[%emt 0:01:31]} 14. Be3 {[%emt 0:01:44]} Na5 {[%emt 0:03:51]} 15. Be2 {[%emt 0:06:24]} Nc4 {[%emt 0:02:14]} 16. Bxc4 {[%emt 0:02:25]} bxc4 {[%emt 0:00:07]} 17. Bd4 {[%emt 0:00:12]} f6 {[%emt 0:01:48]} 18. Nd2 {[%emt 0:02:03]} Bb7 {[%emt 0:02:34]} 19. Qg4 {[%emt 0:05:08]} d5 {[%emt 0:07:28]} 20. Bxc5 {[%emt 0:01:21]} f5 {[%emt 0:00:09]} 21. exf5 {[%emt 0:00:54]} exf5 {[%emt 0:01:45]} 22. Qg3 {[%emt 0:08:34]} Bxc5 {[%emt 0:00:31]} 23. Nf3 {[%emt 0:02:12]} Rae8 {[%emt 0:11:03]} 24. Rad1 {[%emt 0:02:09]} Rd8 {[%emt 0:07:37]} 25. Ne2 {[%emt 0:03:14]} Rde8 {[%emt 0:06:42]} 26. Ned4 {[%emt 0:09:29]} Re4 {[%emt 0:01:01]} 27. c3 {[%emt 0:02:20]} Bd6 {[%emt 0:02:20]} 28. Qh3 {[%emt 0:18:50]} h6 {[%emt 0:11:42]} 29. g3 {[%emt 0:01:11]} Qf7 {[%emt 0:03:40]} 30. Rfe1 {[%emt 0:03:28]} Qg6 {[%emt 0:04:32]} 31. Nd2 {[%emt 0:04:02]} Ree8 {[%emt 0:02:44]} 32. Rxe8 {[%emt 0:01:26]} Qxe8 {[%emt 0:01:09]} 33. N2f3 {[%emt 0:00:38]} Bc8 {[%emt 0:02:08]} 34. Re1 {[%emt 0:01:31]} Qf7 {[%emt 0:00:59]} 35. Qf1 {[%emt 0:00:53]} Re8 {[%emt 0:00:52]} 36. Kg2 {[%emt 0:01:42]} Re4 {[%emt 0:07:55]} 37. Rb1 {[%emt 0:01:26]} Re3 {[%emt 0:02:10]} 38. Qf2 {[%emt 0:00:42]} Qe8 {[%emt 0:00:36]} 39. Re1 {[%emt 0:04:23]} Re4 {[%emt 0:00:41]} 40. Nc2 {[%emt 0:01:00]} Qe7 {[%emt 0:00:46]} 41. Qd2 {[%emt 0:01:10]} Rxe1 {[%emt 0:01:25]} 42. Qxe1 {[%emt 0:00:54]} Qe4 {[%emt 0:00:43]} 43. Qxe4 {[%emt 0:00:27]} dxe4 {[%emt 0:00:20]} 44. Nd2 {[%emt 0:00:22]} Be6 {[%emt 0:00:22]} 45. Ne3 {[%emt 0:00:10]} g5 {[%emt 0:00:54]} 46. Nexc4 {[%emt 0:00:59]} Bc5 {[%emt 0:00:45]} 47. Ne5 {[%emt 0:01:01]} gxf4 {[%emt 0:00:43]} 48. gxf4 {[%emt 0:00:19]} Be3 {[%emt 0:00:12]} 49. Nf1 {[%emt 0:01:01]} Bxf4 {[%emt 0:00:08]} 50. Nc6 {[%emt 0:00:29]} e3 {[%emt 0:00:30]} 51. Nd4 {[%emt 0:00:44]} Bd5+ {[%emt 0:00:35]} 52. Kg1 {[%emt 0:00:14]} Bg5 {[%emt 0:00:32]} 53. h4 {[%emt 0:00:41]} Bf4 {[%emt 0:02:36]} 54. Ne2 {[%emt 0:00:03]} Bd6 {[%emt 0:00:26]} 55. Nxe3 {[%emt 0:00:05]} Be4 {[%emt 0:00:06]} 56. Kf2 {[%emt 0:00:39]} Kf7 {[%emt 0:01:21]} 57. Ng3 {[%emt 0:00:07]} Ke6 {[%emt 0:00:27]} 58. Nxe4 {[%emt 0:01:19]} fxe4 {[%emt 0:00:02]} 59. Nc2 {[%emt 0:00:11]} Bc5+ {[%emt 0:00:22]} 60. Ke2 {[%emt 0:00:34]} Be7 {[%emt 0:00:04]} 61. h5 {[%emt 0:00:19]} Bg5 {[%emt 0:00:31]} 62. b4 {[%emt 0:01:46]} Kf5 {[%emt 0:00:27]} 63. Ne3+ {[%emt 0:00:16]} Ke6 {[%emt 0:01:19]} 64. c4 {[%emt 0:00:09]} Kd6 {[%emt 0:00:23]} 65. Kf2 {[%emt 0:04:14]} a5 {[%emt 0:01:01]} 66. Ke2 {[%emt 0:00:34]} Kc6 {[%emt 0:00:24]} 67. Nf5 {[%emt 0:00:26]} Bc1 {[%emt 0:00:17]} 68. Nd4+ {[%emt 0:02:19]} Kc7 {[%emt 0:00:38]} 69. bxa5 {[%emt 0:00:14]} Kb7 {[%emt 0:00:11]} 70. a4 {[%emt 0:00:42]} Ka6 {[%emt 0:00:11]} 71. Nb3 {[%emt 0:00:10]} Bg5 {[%emt 0:00:20]} 72. c5 {[%emt 0:00:23]} Kb7 {[%emt 0:00:26]} 73. Nd2 {[%emt 0:00:13]} Bd8 {[%emt 0:00:21]} 74. Nxe4 {[%emt 0:00:12]} Bxa5 {[%emt 0:00:06]} 75. Ke3 {[%emt 0:00:10]} Kc6 {[%emt 0:00:18]} 76. Kd4 {[%emt 0:00:12]} Bb4 {[%emt 0:00:34]} 77. Kc4 {[%emt 0:00:06]} Be1 {[%emt 0:00:13]} 78. Nd6 {[%emt 0:01:12]} Bf2 {[%emt 0:01:35]} 79. Nf5 {[%emt 0:00:10]} Bxc5 {[%emt 0:00:05]} 80. Nxh6 {[%emt 0:00:01]} Bf8 {[%emt 0:00:08]} 81. Nf7 {[%emt 0:00:04]} Kb6 {[%emt 0:00:10]} 82. h6 {[%emt 0:00:03]} Bxh6 {[%emt 0:00:06]} 83. Nxh6 {[%emt 0:00:02]} Ka5 {[%emt 0:00:07]} 84. Kb3 {[%emt 0:00:01]} Ka6 {[%emt 0:00:03]} 85. Kb4 {[%emt 0:00:02]} Kb6 {[%emt 0:00:06]} 86. Nf5 {[%emt 0:00:03]} Ka6 {[%emt 0:00:06]} 87. a5 {[%emt 0:00:03]} Ka7 {[%emt 0:00:03]} 88. Kb5 {[%emt 0:00:03]} Ka8 {[%emt 0:01:10]} 89. Kb6 {[%emt 0:00:08]} Kb8 {[%emt 0:00:05]} 90. a6 {[%emt 0:00:03]} Ka8 {[%emt 0:00:11]} 91. Ne3 {[%emt 0:00:02]} Kb8 {[%emt 0:00:06]} 92. Nd5 {[%emt 0:00:06]} Ka8 {[%emt 0:00:09]} 93. Nc7+ {[%emt 0:00:02]} Kb8 {[%emt 0:00:04]} 94. a7+ {[%emt 0:00:02]} 1-0

[Event "36th Indian-ch U13 Girls 2023"]
[Site "Secunderabad"]
[Date "2023.12.07"]
[Round "6.1"]
[White "Kalyani Sirin"]
[Black "Shreya G Hipparagi"]
[Result "0-1"]
[ECO "B78"]
[WhiteElo "1802"]
[BlackElo "1576"]
[Annotator "NA RC"]
[PlyCount "124"]
[EventDate "2023.12.04"]
[EventType "swiss"]
[EventCountry "IND"]
[SourceTitle "playchess.com"]
[Source "ChessBase"]
[SourceQuality "1"]
[TimeControl "5400+30"]

1. e4 {[%emt 0:00:18]} c5 {[%emt 0:00:04]} 2. Nf3 {[%emt 0:00:11]} d6 {[%emt 0:00:07]} 3. d4 {[%emt 0:00:20]} cxd4 {[%emt 0:00:06]} 4. Nxd4 {[%emt 0:00:05]} Nf6 {[%emt 0:00:05]} 5. Nc3 {[%emt 0:00:12]} g6 {[%emt 0:00:06]} 6. Be3 {[%emt 0:00:22]} Bg7 {[%emt 0:00:14]} 7. f3 {[%emt 0:00:20]} O-O {[%emt 0:00:09]} 8. Qd2 {[%emt 0:00:44]} Nc6 {[%emt 0:00:26]} 9. Bc4 {[%emt 0:00:08]} Bd7 {[%emt 0:00:10]} 10. O-O-O {[%emt 0:00:10]} Rc8 {[%emt 0:00:05]} 11. Bb3 {[%emt 0:00:15]} Nxd4 {[%emt 0:00:26]} 12. Bxd4 {[%emt 0:00:21]} b5 {[%emt 0:00:17]} 13. Kb1 {[%emt 0:06:21]} a5 {[%emt 0:00:32]} 14. a3 {[%emt 0:00:34]} b4 {[%emt 1:34:43]} 15. axb4 {[%emt 0:00:44]} axb4 {[%emt 0:00:00]} 16. Na2 {[%emt 0:00:17]} Ra8 {[%emt 0:00:00]} 17. Qxb4 {[%emt 0:06:17]} Qc7 {[%emt 0:00:00]} 18. Qb6 {[%emt 0:09:03]} Qc8 {[%emt 0:00:00]} 19. Nc1 {[%emt 1:13:18]} Ra6 {[%emt 0:00:00]} 20. Qb4 {[%emt 0:00:00]} Qa8 {[%emt 0:00:00]} 21. c4 $19 {[%emt 0:00:00]} Ra1+ {[%emt 0:00:00]} 22. Kc2 {[%emt 0:00:00]} Bh6 {[%emt 0:00:00]} 23. Nd3 {[%emt 0:00:00]} Ra6 {[%emt 0:00:00]} 24. Qc3 {[%emt 0:00:00]} Bg7 {[%emt 0:00:00]} 25. Nb4 {[%emt 0:00:00]} Ra5 {[%emt 0:00:00]} 26. Rhe1 {[%emt 0:00:00]} Rb8 {[%emt 0:00:00]} 27. g4 {[%emt 0:00:00]} Qb7 {[%emt 0:00:00]} 28. Nd5 {[%emt 0:00:00]} Nxd5 {[%emt 0:00:00]} 29. exd5 {[%emt 0:00:00]} Bxd4 {[%emt 0:00:00]} 30. Rxd4 {[%emt 0:00:00]} Ra6 {[%emt 0:00:00]} 31. Rd3 {[%emt 0:00:00]} Rb6 {[%emt 0:00:00]} 32. Ra1 {[%emt 0:00:00]} Qc7 {[%emt 0:00:00]} 33. Qd4 {[%emt 0:00:00]} e5 {[%emt 0:00:00]} 34. dxe6 {[%emt 0:00:00]} Bxe6 {[%emt 0:00:00]} 35. Rc3 {[%emt 0:00:00]} Qb7 {[%emt 0:00:00]} 36. Ra3 {[%emt 0:00:00]} Rc8 {[%emt 0:00:00]} 37. h4 {[%emt 0:00:00]} Rb8 {[%emt 0:00:00]} 38. Kd2 {[%emt 0:00:00]} Qe7 {[%emt 0:00:00]} 39. Qf2 {[%emt 0:00:00]} Qf6 {[%emt 0:00:00]} 40. Kc2 {[%emt 0:00:00]} Bxg4 {[%emt 0:00:00]} 41. Qg3 {[%emt 0:00:00]} Bf5+ {[%emt 0:00:00]} 42. Kc1 {[%emt 0:00:00]} Qe7 {[%emt 0:00:00]} 43. Qf2 {[%emt 0:00:00]} Qe5 {[%emt 0:00:00]} 44. Kd1 {[%emt 0:00:00]} Bd7 {[%emt 0:00:00]} 45. Kc1 {[%emt 0:01:34]} Qf4+ {[%emt 0:00:00]} 46. Kb1 {[%emt 0:00:19]} Bf5+ {[%emt 0:00:00]} 47. Ka2 {[%emt 0:00:21]} Be6 {[%emt 0:00:00]} 48. Ra4 {[%emt 0:01:25]} h5 {[%emt 0:04:38]} 49. Ka3 {[%emt 0:00:34]} Qe5 {[%emt 0:02:57]} 50. f4 {[%emt 0:00:52]} Qe4 {[%emt 0:00:47]} 51. Qd2 {[%emt 0:04:06]} Qb7 {[%emt 0:03:53]} 52. Qe3 {[%emt 0:01:05]} Qc6 {[%emt 0:01:30]} 53. Ra5 {[%emt 0:01:19]} Qc7 {[%emt 0:01:30]} 54. Rb5 {[%emt 0:01:16]} Ra6+ {[%emt 0:01:18]} 55. Ba4 {[%emt 0:00:13]} Rba8 {[%emt 0:00:37]} 56. b3 {[%emt 0:00:06]} Qe7 {[%emt 0:00:31]} 57. f5 {[%emt 0:02:11]} gxf5 {[%emt 0:00:45]} 58. Qd4 {[%emt 0:00:30]} f6 {[%emt 0:01:14]} 59. Rg3+ {[%emt 0:00:43]} Kf8 {[%emt 0:00:41]} 60. Rg6 {[%emt 0:00:58]} Bf7 {[%emt 0:01:20]} 61. Rxf6 {[%emt 0:00:27]} d5+ {[%emt 0:00:11]} 62. c5 {[%emt 0:00:34]} Qxf6 {[%emt 0:00:13]} 0-1

[Event "36th Indian-ch U13 Girls 2023"]
[Site "Secunderabad"]
[Date "2023.12.07"]
[Round "6.2"]
[White "Pratyasha Jena"]
[Black "Gorli Nyna"]
[Result "1/2-1/2"]
[ECO "B49"]
[WhiteElo "1603"]
[BlackElo "1652"]
[Annotator "NA RC"]
[PlyCount "115"]
[EventDate "2023.12.04"]
[EventType "swiss"]
[EventCountry "IND"]
[SourceTitle "playchess.com"]
[Source "ChessBase"]
[SourceQuality "1"]
[TimeControl "5400+30"]

1. e4 {[%emt 0:00:08]} c5 {[%emt 0:00:09]} 2. Nf3 {[%emt 0:00:10]} e6 {[%emt 0:00:05]} 3. d4 {[%emt 0:00:15]} cxd4 {[%emt 0:00:04]} 4. Nxd4 {[%emt 0:00:04]} a6 {[%emt 0:00:05]} 5. Nc3 {[%emt 0:00:45]} Nc6 {[%emt 0:00:24]} 6. Be2 {[%emt 0:02:48]} Qc7 {[%emt 0:00:18]} 7. a3 {[%emt 0:02:55]} Nf6 {[%emt 0:01:11]} 8. Be3 {[%emt 0:01:50]} b5 {[%emt 0:04:23]} 9. O-O {[%emt 0:10:00]} Bb7 {[%emt 0:01:40]} 10. Nxc6 {[%emt 0:12:55]} Bxc6 {[%emt 0:02:59]} 11. Qd4 {[%emt 0:06:21]} Bd6 {[%emt 0:04:19]} 12. g3 {[%emt 0:10:44]} Be5 {[%emt 0:01:13]} 13. Qd3 {[%emt 0:01:16]} O-O {[%emt 0:03:23]} 14. Bd4 {[%emt 0:05:05]} d5 {[%emt 0:12:04]} 15. Bxe5 {[%emt 0:08:13]} Qxe5 {[%emt 0:00:03]} 16. exd5 {[%emt 0:02:16]} Nxd5 {[%emt 0:01:00]} 17. f4 {[%emt 0:07:29]} Qc7 {[%emt 0:02:09]} 18. Bf3 {[%emt 0:03:02]} Qb6+ {[%emt 0:01:05]} 19. Rf2 {[%emt 0:00:33]} Rfd8 {[%emt 0:04:12]} 20. Nxd5 {[%emt 0:01:45]} Bxd5 {[%emt 0:00:02]} 21. Bxd5 {[%emt 0:00:40]} Rxd5 {[%emt 0:00:03]} 22. Qf3 {[%emt 0:00:15]} Rad8 {[%emt 0:01:05]} 23. Kg2 {[%emt 0:01:56]} h6 {[%emt 0:00:37]} 24. Re1 {[%emt 0:01:02]} Qd4 {[%emt 0:03:28]} 25. c3 {[%emt 0:02:17]} Qc4 {[%emt 0:02:43]} 26. Qe4 {[%emt 0:01:06]} Qb3 {[%emt 0:03:55]} 27. Qc2 {[%emt 0:01:48]} Qc4 {[%emt 0:01:38]} 28. Qe4 {[%emt 0:00:25]} Qc5 {[%emt 0:00:07]} 29. Ree2 {[%emt 0:02:37]} Qc8 {[%emt 0:05:14]} 30. Qf3 {[%emt 0:01:45]} Qd7 {[%emt 0:00:30]} 31. Qe4 {[%emt 0:01:12]} Qc8 {[%emt 0:01:18]} 32. Qf3 {[%emt 0:00:28]} R8d6 {[%emt 0:00:17]} 33. Qe4 {[%emt 0:01:31]} Qd7 {[%emt 0:00:54]} 34. Qf3 {[%emt 0:00:41]} Rd1 {[%emt 0:00:35]} 35. f5 {[%emt 0:01:12]} exf5 {[%emt 0:13:54]} 36. Qxf5 {[%emt 0:00:12]} Re6 {[%emt 0:00:38]} 37. Rxe6 {[%emt 0:01:30]} fxe6 {[%emt 0:00:01]} 38. Qe4 {[%emt 0:02:42]} Qd5 {[%emt 0:11:19]} 39. Qxd5 {[%emt 0:00:52]} Rxd5 {[%emt 0:00:06]} 40. Kf1 {[%emt 0:00:34]} a5 {[%emt 0:00:52]} 41. Ke2 {[%emt 0:02:30]} g5 {[%emt 0:02:05]} 42. b3 {[%emt 0:01:15]} a4 {[%emt 0:01:50]} 43. bxa4 {[%emt 0:01:28]} bxa4 {[%emt 0:00:01]} 44. Ke3 {[%emt 0:02:14]} Rd1 {[%emt 0:01:19]} 45. c4 {[%emt 0:01:19]} Ra1 {[%emt 0:01:26]} 46. Kd4 {[%emt 0:00:20]} Rxa3 {[%emt 0:00:04]} 47. Rf6 {[%emt 0:00:06]} Ra1 {[%emt 0:05:30]} 48. Rxe6 {[%emt 0:00:20]} a3 {[%emt 0:00:28]} 49. Kc3 {[%emt 0:00:59]} Rc1+ {[%emt 0:05:06]} 50. Kb3 {[%emt 0:00:29]} Kg7 {[%emt 0:00:05]} 51. Rc6 {[%emt 0:00:45]} Rh1 {[%emt 0:00:47]} 52. Kxa3 {[%emt 0:00:06]} Rxh2 {[%emt 0:00:04]} 53. Rd6 {[%emt 0:00:05]} Rg2 {[%emt 0:01:37]} 54. Rd3 {[%emt 0:00:10]} h5 {[%emt 0:00:53]} 55. c5 {[%emt 0:00:16]} Rc2 {[%emt 0:00:42]} 56. Kb4 {[%emt 0:00:05]} Kf6 {[%emt 0:00:02]} 57. Kb5 {[%emt 0:00:40]} Kf5 {[%emt 0:01:56]} 58. Kb6 {[%emt 0:01:08]} 1/2-1/2

[Event "36th Indian-ch U13 Girls 2023"]
[Site "Secunderabad"]
[Date "2023.12.07"]
[Round "6.3"]
[White "Saparya Ghosh"]
[Black "Kirthika B"]
[Result "1/2-1/2"]
[ECO "E62"]
[WhiteElo "1662"]
[BlackElo "1605"]
[Annotator "NA RC"]
[PlyCount "76"]
[EventDate "2023.12.04"]
[EventType "swiss"]
[EventCountry "IND"]
[SourceTitle "playchess.com"]
[Source "ChessBase"]
[SourceQuality "1"]
[TimeControl "5400+30"]

1. d4 {[%emt 0:00:04]} Nf6 {[%emt 0:00:09]} 2. c4 {[%emt 0:00:09]} g6 {[%emt 0:00:04]} 3. g3 {[%emt 0:00:06]} Bg7 {[%emt 0:00:06]} 4. Bg2 {[%emt 0:00:06]} O-O {[%emt 0:00:10]} 5. Nc3 {[%emt 0:00:04]} d6 {[%emt 0:00:04]} 6. h3 {[%emt 0:00:10]} e5 {[%emt 0:03:46]} 7. Nf3 {[%emt 1:33:21]} Nc6 {[%emt 0:03:31]} 8. O-O {[%emt 0:00:00]} exd4 {[%emt 0:04:24]} 9. Nxd4 {[%emt 0:00:00]} Bd7 {[%emt 0:00:18]} 10. Be3 {[%emt 0:00:00]} Re8 {[%emt 0:05:54]} 11. Qd2 {[%emt 0:00:00]} Qc8 {[%emt 0:03:47]} 12. Kh2 {[%emt 0:00:00]} Ne5 {[%emt 0:02:01]} 13. b3 {[%emt 0:00:00]} h5 {[%emt 0:03:30]} 14. Nf3 {[%emt 0:00:00]} a6 {[%emt 0:09:06]} 15. Nxe5 {[%emt 0:00:00]} dxe5 {[%emt 0:02:41]} 16. Bg5 {[%emt 0:00:00]} Bc6 {[%emt 0:12:00]} 17. Bxc6 {[%emt 0:00:00]} bxc6 {[%emt 0:00:13]} 18. Rad1 {[%emt 0:00:00]} Qf5 {[%emt 0:06:20]} 19. Bxf6 {[%emt 0:00:00]} Qxf6 {[%emt 0:03:21]} 20. Ne4 {[%emt 0:00:00]} Qe7 {[%emt 0:07:35]} 21. Qd7 {[%emt 0:00:00]} f5 {[%emt 0:01:07]} 22. Nc3 {[%emt 0:00:00]} Qxd7 {[%emt 0:06:26]} 23. Rxd7 {[%emt 0:00:00]} e4 {[%emt 0:03:25]} 24. Na4 {[%emt 0:00:00]} Be5 {[%emt 0:00:35]} 25. Nc5 {[%emt 0:00:00]} a5 {[%emt 0:07:03]} 26. Rfd1 {[%emt 0:00:00]} Ra7 {[%emt 0:01:48]} 27. Rd8 {[%emt 0:00:00]} Rxd8 {[%emt 0:01:14]} 28. Rxd8+ {[%emt 0:00:00]} Kf7 {[%emt 0:00:12]} 29. Nd7 {[%emt 0:00:00]} Bd6 {[%emt 0:02:58]} 30. Rc8 {[%emt 0:00:00]} c5 {[%emt 0:01:59]} 31. Kg2 {[%emt 0:01:29]} Rb7 {[%emt 0:04:10]} 32. Rb8 {[%emt 0:04:03]} Ra7 {[%emt 0:01:44]} 33. Rc8 {[%emt 0:02:03]} Rb7 {[%emt 0:03:48]} 34. Rb8 {[%emt 0:00:40]} Ra7 {[%emt 0:00:03]} 35. Rc8 {[%emt 0:01:16]} Rb7 {[%emt 0:01:40]} 36. Rb8 {[%emt 0:00:22]} Ra7 {[%emt 0:00:14]} 37. Rc8 {[%emt 0:00:13]} Rb7 {[%emt 0:00:11]} 38. Rb8 {[%emt 0:00:40]} Ra7 {[%emt 0:00:30]} 1/2-1/2

[Event "36th Indian-ch U13 Girls 2023"]
[Site "Secunderabad"]
[Date "2023.12.07"]
[Round "6.4"]
[White "Samhita Pungavanam"]
[Black "Arshiya Das"]
[Result "0-1"]
[ECO "B23"]
[WhiteElo "1437"]
[BlackElo "1729"]
[Annotator "NA RC"]
[PlyCount "114"]
[EventDate "2023.12.04"]
[EventType "swiss"]
[EventCountry "IND"]
[SourceTitle "playchess.com"]
[Source "ChessBase"]
[SourceQuality "1"]
[TimeControl "5400+30"]

1. e4 {[%emt 0:00:30]} c5 {[%emt 0:00:03]} 2. Nc3 {[%emt 0:01:02]} d6 {[%emt 0:00:05]} 3. f4 {[%emt 0:01:01]} g6 {[%emt 0:00:06]} 4. Nf3 {[%emt 0:01:48]} Bg7 {[%emt 0:00:05]} 5. Bb5+ {[%emt 0:02:41]} Bd7 {[%emt 0:00:36]} 6. a4 {[%emt 0:00:25]} Nc6 {[%emt 0:08:42]} 7. d3 {[%emt 0:11:09]} Nd4 {[%emt 0:08:19]} 8. Be3 {[%emt 0:12:33]} e6 {[%emt 0:14:18]} 9. O-O {[%emt 0:12:03]} Ne7 {[%emt 0:02:30]} 10. Bxd4 {[%emt 0:13:52]} cxd4 {[%emt 0:00:04]} 11. Bxd7+ {[%emt 0:08:56]} Qxd7 {[%emt 0:00:42]} 12. Nb5 {[%emt 0:05:00]} e5 {[%emt 0:03:56]} 13. Qd2 {[%emt 0:05:06]} O-O {[%emt 0:04:41]} 14. Qb4 {[%emt 0:04:54]} Nc8 {[%emt 0:06:41]} 15. Qc4 {[%emt 0:03:51]} Nb6 {[%emt 0:02:34]} 16. Qb4 {[%emt 0:02:42]} Nc8 {[%emt 0:00:29]} 17. a5 {[%emt 0:03:04]} h6 {[%emt 0:02:51]} 18. Qc4 {[%emt 0:02:31]} Ne7 {[%emt 0:01:21]} 19. Qb4 {[%emt 0:01:23]} Nc8 {[%emt 0:05:57]} 20. Qc4 {[%emt 0:01:22]} Ne7 {[%emt 0:02:24]} 21. Qb4 {[%emt 0:00:54]} Nc8 {[%emt 0:01:53]} 22. fxe5 {[%emt 0:01:58]} dxe5 {[%emt 0:00:21]} 23. Qc5 {[%emt 0:00:32]} Qe7 {[%emt 0:03:47]} 24. b4 {[%emt 0:00:57]} a6 {[%emt 0:04:31]} 25. Nc7 {[%emt 0:00:44]} Rb8 {[%emt 0:00:14]} 26. Nd5 {[%emt 0:01:12]} Qd8 {[%emt 0:01:47]} 27. Nc7 {[%emt 0:00:54]} Nd6 {[%emt 0:00:54]} 28. Nd5 {[%emt 0:00:52]} Rc8 {[%emt 0:00:31]} 29. Qb6 {[%emt 0:00:30]} Qd7 {[%emt 0:01:05]} 30. b5 {[%emt 0:00:31]} axb5 {[%emt 0:01:11]} 31. a6 {[%emt 0:00:15]} Rc6 {[%emt 0:04:17]} 32. Qa7 {[%emt 0:00:45]} Kh7 {[%emt 0:03:27]} 33. axb7 {[%emt 0:00:22]} Nxb7 {[%emt 0:00:56]} 34. Nb4 {[%emt 0:00:29]} Rc7 {[%emt 0:00:28]} 35. Qb6 {[%emt 0:00:31]} Nd8 {[%emt 0:00:54]} 36. Ra5 {[%emt 0:00:31]} Rb7 {[%emt 0:00:34]} 37. Qc5 {[%emt 0:00:29]} Ne6 {[%emt 0:01:08]} 38. Qc6 {[%emt 0:00:20]} Qxc6 {[%emt 0:01:03]} 39. Nxc6 {[%emt 0:00:02]} f6 {[%emt 0:00:08]} 40. Ra7 {[%emt 0:01:16]} Rxa7 {[%emt 0:00:41]} 41. Nxa7 {[%emt 0:00:02]} Rb8 {[%emt 0:00:11]} 42. Rb1 {[%emt 0:00:33]} Nc7 {[%emt 0:00:04]} 43. Nd2 {[%emt 0:00:32]} Bf8 {[%emt 0:00:25]} 44. Nb3 {[%emt 0:00:34]} Ra8 {[%emt 0:00:17]} 45. Ra1 {[%emt 0:00:36]} Bb4 {[%emt 0:01:32]} 46. Nc6 {[%emt 0:00:38]} Ba3 {[%emt 0:00:32]} 47. Kf2 {[%emt 0:00:36]} Ra6 {[%emt 0:00:36]} 48. Nca5 {[%emt 0:00:24]} Bb2 {[%emt 0:00:10]} 49. Rb1 {[%emt 0:00:35]} Bc3 {[%emt 0:00:05]} 50. Nb7 {[%emt 0:00:14]} Ra2 {[%emt 0:00:17]} 51. Rc1 {[%emt 0:00:16]} Na6 {[%emt 0:00:32]} 52. Nd6 {[%emt 0:00:46]} Nb4 {[%emt 0:00:04]} 53. Kg3 {[%emt 0:00:27]} Nxc2 {[%emt 0:01:33]} 54. Nxb5 {[%emt 0:00:18]} Rb2 {[%emt 0:00:51]} 55. Nxc3 {[%emt 0:00:51]} dxc3 {[%emt 0:00:06]} 56. Nc5 {[%emt 0:00:11]} Nd4 {[%emt 0:00:03]} 57. Kh3 {[%emt 0:00:34]} c2 {[%emt 0:15:28]} 0-1